Workbook

Sheet Template
C1: FIXED ROUTES FIXED ROUTES FIXED ROUTES FIXED ROUTES FIXED ROUTES FIXED ROUTES | AC1: PARATRANSIT ROUTE(S) PARATRANSIT ROUTE(S) PARATRANSIT ROUTE(S) PARATRANSIT ROUTE(S)
A2: Date | B2: Day | C2: Conroe Connection Tickets | D2: Senior Ride Tickets | E2: $1.00 Adults | F2: $.50 Riders | G2: $.50 ADA Riders | H2: Children Under 6 | I2: Transfer Slips | J2: Employee/City Badge/EMS | K2: Service Animals | L2: Ramp Used | M2: Total FR Riders | N2: Expected Monies FR | O2: 1473 Amt. | P2: 1474 Amt. | Q2: 1475 Amt. | R2: 1476 Amt. | S2: 1603 Amt. | T2: 1604 Amt. | U2: Spare Amt. | V2: Total Collected FR | W2: Difference | X2: Overage / Shortage | Y2: Justification | Z2: Total FR Trips | AA2: Late FR Trips | AB2: OTP | AC2: Date | AD2: Day | AE2: $2.00 Paratransit Clients | AF2: $2.00 Companions | AG2: Personal Care Attendants | AH2: Service Animals | AI2: Total Para Riders | AJ2: Expected Monies Para | AK2: 1473 Amt. | AL2: 1474 Amt. | AM2: 1475 Amt. | AN2: 1476 Amt. | AO2: 1603 Amt. | AP2: 1604 Amt. | AQ2: Spare Amt. | AR2: Currency Collected | AS2: ADA Green Tickets | AT2: ADA White Tickets | AU2: Senior Rides Tickets | AV2: Conroe Connection Ticket "Fare" | AW2: Senior Rides Ticket "Fare" | AX2: Total Fare Collected | AY2: Difference | AZ2: Overage / Shortage | BA2: Justification | BB2: Total Para Trips | BC2: Late Para Trips | BD2: OTP | BE2: Total Weekly Riders
A3: 2017-03-01 | B3: Wednesday | C3: 9 | E3: =22+29 -> 51 | F3: 18 | G3: 4 | H3: 4 | I3: 22 | L3: 2 | M3: =C3+D3+E3+F3+G3+H3+I3+J3 -> 108 | N3: =E3*1+F3*0.5+G3*0.5 -> $62.00 | O3: $33.60 | R3: $28.40 | V3: =SUM(O3:U3) -> $62.00 | W3: =V3-N3 -> $0.00 | X3: =IF(W3>0, "Overage", IF(W3<0, "Shortage", "")) ->  | Z3: =2*12*5 -> 120 | AA3: 0 | AB3: =IF(Z3=0, 1, (Z3-AA3)/Z3) -> 100.00% | AC3: =A3 -> 2017-03-01 | AD3: =B3 -> Wednesday | AE3: 17 | AI3: =AE3+AF3+AG3 -> 17 | AJ3: =AE3*2+AF3*2 -> $34.00 | AP3: $22.00 | AR3: =SUM(AK3:AQ3) -> $22.00 | AS3: 5 | AT3: 1 | AV3: =(AS3+AT3)*2 -> $12.00 | AW3: =AU3*2 -> $0.00 | AX3: =AR3+AV3 -> $34.00 | AY3: =AX3-AJ3 -> $0.00 | AZ3: =IF(AY3>0, "Overage", IF(AY3<0, "Shortage", "")) ->  | BB3: =AE3 -> 17 | BC3: 0 | BD3: =IF(BB3=0, 1, (BB3-BC3)/BB3) -> 100.00% | BE3: =M3+AI3 -> 125
A4: 2017-03-02 | B4: Thursday | C4: 7 | E4: 65 | F4: 14 | G4: 2 | H4: 4 | I4: 30 | L4: 14 | M4: 122 | N4: $73.00 | O4: $23.39 | R4: $50.60 | V4: $73.99 | W4: =V4-N4 -> $0.99 | X4: =IF(W4>0, "Overage", IF(W4<0, "Shortage", "")) -> Overage | Z4: =2*12*5 -> 120 | AA4: 0 | AB4: 100.00% | AC4: =A4 -> 2017-03-02 | AD4: =B4 -> Thursday | AE4: 11 | AI4: 11 | AJ4: $22.00 | AP4: $18.00 | AR4: $18.00 | AT4: 2 | AV4: =(AS4+AT4)*2 -> $4.00 | AW4: =AU4*2 -> $0.00 | AX4: =AR4+AV4+AW4 -> $22.00 | AY4: $0.00 | AZ4: =IF(AY4>0, "Overage", IF(AY4<0, "Shortage", "")) ->  | BB4: 11 | BC4: 0 | BD4: 100.00% | BE4: =BE3+M4+AI4 -> 258
A5: 2017-03-03 | B5: Friday | C5: 5 | E5: 54 | F5: 17 | G5: 5 | H5: 5 | I5: 30 | L5: 15 | M5: 116 | N5: $65.00 | O5: $44.07 | R5: $22.00 | V5: $66.07 | W5: =V5-N5 -> $1.07 | X5: Overage | Z5: 120 | AA5: 0 | AB5: 100.00% | AC5: 2017-03-03 | AD5: Friday | AI5: 0 | AJ5: $0.00 | AR5: $0.00 | AV5: $0.00 | AW5: $0.00 | AX5: $0.00 | AY5: $0.00 | BB5: 0 | BC5: 0 | BD5: 100.00% | BE5: =BE4+M5+AI5 -> 374
A6: 2017-03-04 | B6: Saturday | M6: 0 | N6: $0.00 | V6: $0.00 | W6: $0.00 | Z6: 120 | AA6: 0 | AB6: 100.00% | AC6: 2017-03-04 | AD6: Saturday | AI6: =AE6+AF6+AG6 -> 0 | AJ6: $0.00 | AR6: $0.00 | AV6: $0.00 | AW6: $0.00 | AX6: $0.00 | AY6: $0.00 | BB6: 0 | BC6: 0 | BD6: 100.00% | BE6: 374
A7: 2017-03-05 | B7: Sunday | M7: 0 | N7: $0.00 | V7: $0.00 | W7: $0.00 | Z7: 120 | AA7: 0 | AB7: 100.00% | AC7: 2017-03-05 | AD7: Sunday | AI7: 0 | AJ7: $0.00 | AR7: $0.00 | AV7: $0.00 | AW7: $0.00 | AX7: $0.00 | AY7: $0.00 | BB7: 0 | BC7: 0 | BD7: 100.00% | BE7: 374
A8: 2017-03-06 | B8: Monday | C8: 2 | E8: 66 | F8: 14 | G8: 5 | H8: 7 | I8: 22 | L8: 10 | M8: 116 | N8: $75.50 | O8: $43.45 | R8: $32.00 | V8: $75.45 | W8: ($0.05) | X8: =IF(W8>0, "Overage", IF(W8<0, "Shortage", "")) -> Shortage | Z8: 120 | AA8: 0 | AB8: 100.00% | AC8: 2017-03-06 | AD8: Monday | AI8: 0 | AJ8: $0.00 | AR8: $0.00 | AV8: $0.00 | AW8: $0.00 | AX8: $0.00 | AY8: $0.00 | AZ8: =IF(AY8>0, "Overage", IF(AY8<0, "Shortage", "")) ->  | BB8: 0 | BC8: 0 | BD8: 100.00% | BE8: =M8+AI8 -> 116
A9: 2017-03-07 | B9: Tuesday | E9: 62 | F9: 12 | G9: 5 | H9: 6 | I9: 30 | L9: 4 | M9: 115 | N9: $70.50 | O9: $26.40 | R9: $44.27 | V9: $70.67 | W9: $0.17 | X9: =IF(W9>0, "Overage", IF(W9<0, "Shortage", "")) -> Overage | Z9: 120 | AA9: 0 | AB9: 100.00% | AC9: 2017-03-07 | AD9: Tuesday | AI9: 0 | AJ9: $0.00 | AR9: $0.00 | AV9: $0.00 | AW9: $0.00 | AX9: $0.00 | AY9: $0.00 | AZ9: =IF(AY9>0, "Overage", IF(AY9<0, "Shortage", "")) ->  | BB9: 0 | BC9: 0 | BD9: 100.00% | BE9: 231
A10: 2017-03-08 | B10: Wednesday | C10: 3 | E10: 41 | F10: 9 | G10: 4 | H10: 3 | I10: 18 | L10: 18 | M10: =C10+D10+E10+F10+G10+H10+I10+J10 -> 78 | N10: =E10*1+F10*0.5+G10*0.5 -> $47.50 | O10: $23.25 | P10: $24.41 | V10: =SUM(O10:U10) -> $47.66 | W10: =V10-N10 -> $0.16 | X10: =IF(W10>0, "Overage", IF(W10<0, "Shortage", "")) -> Overage | Z10: 120 | AA10: 0 | AC10: 2017-03-08 | AD10: Wednesday | AI10: 0 | AJ10: $0.00 | AR10: $0.00 | AV10: $0.00 | AX10: $0.00 | AY10: $0.00 | BB10: 0 | BC10: 0 | BD10: 100.00% | BE10: 309
A11: 2017-03-09 | B11: Thursday | C11: 7 | E11: 48 | F11: 16 | G11: 8 | I11: 15 | L11: 8 | M11: 94 | N11: $60.00 | O11: $22.45 | P11: $38.49 | V11: $60.94 | W11: $0.94 | X11: Overage | Z11: 120 | AA11: 0 | AB11: 100.00% | AC11: 2017-03-09 | AD11: Thursday | AI11: 0 | AJ11: $0.00 | AR11: $0.00 | AV11: $0.00 | AW11: $0.00 | AX11: $0.00 | AY11: $0.00 | BB11: 0 | BC11: 0 | BD11: 100.00% | BE11: 403
A12: 2017-03-10 | B12: Friday | C12: 3 | E12: 46 | F12: 9 | G12: 1 | H12: 5 | I12: 12 | L12: 4 | M12: 76 | N12: $51.00 | O12: $15.95 | P12: $36.50 | V12: $52.45 | W12: $1.45 | X12: Overage | Z12: 120 | AA12: 0 | AB12: 100.00% | AC12: 2017-03-10 | AD12: Friday | AI12: 0 | AJ12: $0.00 | AR12: $0.00 | AV12: $0.00 | AW12: $0.00 | AX12: $0.00 | AY12: $0.00 | BB12: 0 | BC12: 0 | BD12: 100.00% | BE12: =BE11+M12+AI12 -> 479
A13: 2017-03-11 | B13: Saturday | M13: 0 | N13: $0.00 | V13: $0.00 | W13: $0.00 | Z13: 120 | AA13: 0 | AB13: 100.00% | AC13: 2017-03-11 | AD13: Saturday | AI13: 0 | AJ13: $0.00 | AR13: $0.00 | AV13: $0.00 | AW13: $0.00 | AX13: $0.00 | AY13: $0.00 | BB13: 0 | BC13: 0 | BD13: 100.00% | BE13: =BE12+M13+AI13 -> 479
A14: 2017-03-12 | B14: Sunday | M14: 0 | N14: $0.00 | V14: $0.00 | W14: $0.00 | X14: =IF(W14>0, "Overage", IF(W14<0, "Shortage", "")) ->  | Z14: 120 | AA14: 0 | AB14: 100.00% | AC14: 2017-03-12 | AD14: Sunday | AI14: 0 | AJ14: $0.00 | AR14: =SUM(AK14:AQ14) -> $0.00 | AV14: $0.00 | AW14: $0.00 | AX14: $0.00 | AY14: $0.00 | AZ14: =IF(AY14>0, "Overage", IF(AY14<0, "Shortage", "")) ->  | BB14: 0 | BC14: 0 | BD14: 100.00% | BE14: =BE13+M14+AI14 -> 479
A15: 2017-03-13 | B15: Monday | C15: 6 | E15: 51 | F15: 20 | G15: 6 | H15: 8 | I15: 30 | J15: 2 | L15: 12 | M15: =C15+D15+E15+F15+G15+H15+I15+J15 -> 123 | N15: $64.00 | O15: $26.80 | P15: $43.00 | V15: =SUM(O15:U15) -> $69.80 | W15: $5.80 | X15: =IF(W15>0, "Overage", IF(W15<0, "Shortage", "")) -> Overage | Z15: 120 | AA15: 0 | AB15: 100.00% | AC15: 2017-03-13 | AD15: Monday | AI15: 0 | AJ15: $0.00 | AR15: $0.00 | AV15: $0.00 | AW15: $0.00 | AX15: $0.00 | AY15: $0.00 | AZ15: =IF(AY15>0, "Overage", IF(AY15<0, "Shortage", "")) ->  | BB15: 0 | BC15: 0 | BD15: 100.00% | BE15: =M15+AI15 -> 123
A16: 2017-03-14 | B16: Tuesday | C16: 1 | E16: 42 | F16: 26 | G16: 7 | H16: 11 | I16: 13 | L16: 16 | M16: 100 | N16: $58.50 | O16: $27.00 | P16: $36.00 | V16: $63.00 | W16: $4.50 | X16: Overage | Z16: 120 | AA16: 0 | AB16: 100.00% | AC16: 2017-03-14 | AD16: Tuesday | AI16: 0 | AJ16: $0.00 | AR16: $0.00 | AV16: $0.00 | AW16: $0.00 | AX16: $0.00 | AY16: $0.00 | BB16: 0 | BC16: 0 | BD16: 100.00% | BE16: =BE15+M16+AI16 -> 223
A17: 2017-03-15 | B17: Wednesday | C17: 2 | E17: 57 | F17: 25 | G17: 1 | H17: 14 | I17: 19 | L17: 10 | M17: 118 | N17: $70.00 | P17: $22.18 | R17: $51.49 | V17: $73.67 | W17: $3.67 | X17: Overage | Z17: 120 | AA17: 0 | AB17: 100.00% | AC17: 2017-03-15 | AD17: Wednesday | AI17: 0 | AJ17: $0.00 | AR17: $0.00 | AV17: $0.00 | AW17: $0.00 | AX17: $0.00 | AY17: $0.00 | BB17: 0 | BC17: 0 | BD17: 100.00% | BE17: =BE16+M17+AI17 -> 341
A18: 2017-03-16 | B18: Thursday | C18: 15 | E18: 50 | F18: 7 | G18: 2 | H18: 6 | I18: 9 | L18: 4 | M18: 89 | N18: $54.50 | O18: $21.00 | R18: $33.00 | V18: $54.00 | W18: ($0.50) | X18: Shortage | Z18: 120 | AA18: 0 | AB18: 100.00% | AC18: 2017-03-16 | AD18: Thursday | AI18: 0 | AJ18: $0.00 | AR18: $0.00 | AV18: $0.00 | AW18: $0.00 | AX18: $0.00 | AY18: $0.00 | BB18: 0 | BC18: 0 | BD18: 100.00% | BE18: =BE17+M18+AI18 -> 430
A19: 2017-03-17 | B19: Friday | C19: 3 | E19: 48 | F19: 15 | G19: 4 | H19: 7 | I19: 37 | L19: 16 | M19: 114 | N19: $57.50 | O19: $16.50 | R19: $40.50 | V19: $57.00 | W19: ($0.50) | X19: =IF(W19>0, "Overage", IF(W19<0, "Shortage", "")) -> Shortage | Z19: 120 | AA19: 0 | AB19: 100.00% | AC19: 2017-03-17 | AD19: Friday | AI19: 0 | AJ19: $0.00 | AR19: $0.00 | AV19: $0.00 | AW19: $0.00 | AX19: $0.00 | AY19: $0.00 | AZ19: =IF(AY19>0, "Overage", IF(AY19<0, "Shortage", "")) ->  | BB19: 0 | BC19: 0 | BD19: 100.00% | BE19: =BE18+M19+AI19 -> 544
A20: 2017-03-18 | B20: Saturday | M20: 0 | N20: $0.00 | V20: $0.00 | W20: $0.00 | X20: =IF(W20>0, "Overage", IF(W20<0, "Shortage", "")) ->  | Z20: 120 | AA20: 0 | AB20: 100.00% | AC20: 2017-03-18 | AD20: Saturday | AI20: 0 | AJ20: $0.00 | AR20: $0.00 | AV20: $0.00 | AW20: $0.00 | AX20: $0.00 | AY20: $0.00 | AZ20: =IF(AY20>0, "Overage", IF(AY20<0, "Shortage", "")) ->  | BB20: 0 | BC20: 0 | BD20: 100.00% | BE20: =BE19+M20+AI20 -> 544
A21: 2017-03-19 | B21: Sunday | M21: 0 | N21: $0.00 | V21: $0.00 | W21: $0.00 | Z21: 120 | AA21: 0 | AB21: 100.00% | AC21: 2017-03-19 | AD21: Sunday | AI21: 0 | AJ21: $0.00 | AR21: $0.00 | AV21: $0.00 | AW21: $0.00 | AX21: $0.00 | AY21: $0.00 | BB21: 0 | BC21: 0 | BD21: 100.00% | BE21: =M21+AI21 -> 0
A22: 2017-03-20 | B22: Monday | C22: 2 | E22: 57 | F22: 20 | G22: 2 | H22: 5 | I22: 21 | L22: 24 | M22: 107 | N22: $68.00 | O22: $35.00 | R22: $34.88 | V22: $69.88 | W22: $1.88 | X22: Overage | Z22: 120 | AA22: 0 | AB22: 100.00% | AC22: 2017-03-20 | AD22: Monday | AI22: 0 | AJ22: $0.00 | AR22: $0.00 | AV22: $0.00 | AW22: $0.00 | AX22: $0.00 | AY22: $0.00 | BB22: 0 | BC22: 0 | BD22: 100.00% | BE22: =BE21+M22+AI22 -> 107
A23: 2017-03-21 | B23: Tuesday | C23: 5 | E23: 57 | F23: 22 | G23: 1 | H23: 5 | I23: 29 | J23: 3 | L23: 24 | M23: 122 | N23: $68.50 | P23: $40.81 | R23: $30.25 | V23: $71.06 | W23: $2.56 | X23: Overage | Z23: 120 | AA23: 0 | AB23: 100.00% | AC23: 2017-03-21 | AD23: Tuesday | AI23: 0 | AJ23: $0.00 | AR23: $0.00 | AV23: $0.00 | AW23: $0.00 | AX23: $0.00 | AY23: $0.00 | BB23: 0 | BC23: 0 | BD23: 100.00% | BE23: 229
A24: 2017-03-22 | B24: Wednesday | C24: 9 | E24: 34 | F24: 19 | G24: 3 | H24: 5 | I24: 14 | J24: 5 | L24: 13 | M24: 89 | N24: $45.00 | P24: $13.76 | R24: $31.50 | V24: $45.26 | W24: $0.26 | X24: =IF(W24>0, "Overage", IF(W24<0, "Shortage", "")) -> Overage | Z24: 120 | AA24: 0 | AB24: 100.00% | AC24: 2017-03-22 | AD24: Wednesday | AI24: 0 | AJ24: $0.00 | AR24: $0.00 | AV24: $0.00 | AW24: $0.00 | AX24: $0.00 | AY24: $0.00 | AZ24: =IF(AY24>0, "Overage", IF(AY24<0, "Shortage", "")) ->  | BB24: 0 | BC24: 0 | BD24: 100.00% | BE24: 318
A25: 2017-03-23 | B25: Thursday | C25: 8 | E25: 29 | F25: 6 | G25: 3 | I25: 9 | L25: 8 | M25: 55 | N25: $33.50 | P25: $10.00 | R25: $23.60 | V25: $33.60 | W25: $0.10 | X25: =IF(W25>0, "Overage", IF(W25<0, "Shortage", "")) -> Overage | Z25: 120 | AA25: 0 | AB25: 100.00% | AC25: 2017-03-23 | AD25: Thursday | AI25: 0 | AJ25: $0.00 | AR25: $0.00 | AV25: $0.00 | AW25: $0.00 | AX25: $0.00 | AY25: $0.00 | AZ25: =IF(AY25>0, "Overage", IF(AY25<0, "Shortage", "")) ->  | BB25: 0 | BC25: 0 | BD25: 100.00% | BE25: 373
A26: 2017-03-24 | B26: Friday | C26: 3 | E26: 42 | F26: 19 | G26: 3 | H26: 4 | I26: 14 | L26: 6 | M26: 85 | N26: $53.00 | P26: $21.00 | R26: $32.54 | V26: $53.54 | W26: $0.54 | X26: Overage | Z26: 120 | AA26: 0 | AB26: 100.00% | AC26: 2017-03-24 | AD26: Friday | AI26: 0 | AJ26: $0.00 | AR26: $0.00 | AV26: $0.00 | AW26: $0.00 | AX26: $0.00 | AY26: $0.00 | BB26: 0 | BC26: 0 | BD26: 100.00% | BE26: 458
A27: 2017-03-25 | B27: Saturday | M27: 0 | N27: $0.00 | V27: $0.00 | W27: $0.00 | Z27: 120 | AA27: 0 | AB27: 100.00% | AC27: 2017-03-25 | AD27: Saturday | AI27: 0 | AJ27: $0.00 | AR27: $0.00 | AV27: $0.00 | AW27: $0.00 | AX27: $0.00 | AY27: $0.00 | BB27: 0 | BC27: 0 | BD27: 100.00% | BE27: 458
A28: 2017-03-26 | B28: Sunday | M28: 0 | N28: $0.00 | V28: $0.00 | W28: $0.00 | Z28: 120 | AA28: 0 | AB28: 100.00% | AC28: 2017-03-26 | AD28: Sunday | AI28: 0 | AJ28: $0.00 | AR28: $0.00 | AV28: $0.00 | AW28: $0.00 | AX28: $0.00 | AY28: $0.00 | BB28: 0 | BC28: 0 | BD28: 100.00%
A29: 2017-03-27 | B29: Monday | C29: 7 | E29: 63 | F29: 20 | G29: 5 | H29: 7 | I29: 30 | L29: 26 | M29: 132 | N29: $75.50 | P29: $38.50 | R29: $37.74 | V29: $76.24 | W29: $0.74 | X29: =IF(W29>0, "Overage", IF(W29<0, "Shortage", "")) -> Overage | Z29: 120 | AA29: 0 | AB29: 100.00% | AC29: 2017-03-27 | AD29: Monday | AI29: 0 | AJ29: $0.00 | AR29: $0.00 | AV29: $0.00 | AW29: $0.00 | AX29: $0.00 | AY29: $0.00 | AZ29: =IF(AY29>0, "Overage", IF(AY29<0, "Shortage", "")) ->  | BB29: 0 | BC29: 0 | BD29: 100.00% | BE29: =M29+AI29 -> 132
A30: 2017-03-28 | B30: Tuesday | C30: 2 | E30: 55 | F30: 14 | G30: 10 | H30: 7 | I30: 29 | L30: 31 | M30: 117 | N30: $67.00 | P30: $28.40 | R30: $41.25 | V30: $69.65 | W30: $2.65 | X30: =IF(W30>0, "Overage", IF(W30<0, "Shortage", "")) -> Overage | Z30: 120 | AA30: 0 | AB30: 100.00% | AC30: 2017-03-28 | AD30: Tuesday | AI30: 0 | AJ30: $0.00 | AR30: $0.00 | AV30: $0.00 | AW30: $0.00 | AX30: $0.00 | AY30: $0.00 | AZ30: =IF(AY30>0, "Overage", IF(AY30<0, "Shortage", "")) ->  | BB30: 0 | BC30: 0 | BD30: 100.00% | BE30: =BE29+M30+AI30 -> 249
A31: 2017-03-29 | B31: Wednesday | C31: 4 | E31: 35 | F31: 15 | G31: 1 | H31: 2 | I31: 15 | L31: 5 | M31: 72 | N31: $43.00 | P31: $22.25 | R31: $19.51 | V31: $41.76 | W31: ($1.24) | X31: Shortage | Z31: 120 | AA31: 0 | AB31: 100.00% | AC31: =A31 -> 2017-03-29 | AD31: Wednesday | AI31: 0 | AJ31: $0.00 | AR31: $0.00 | AV31: $0.00 | AW31: $0.00 | AX31: $0.00 | AY31: $0.00 | BB31: 0 | BC31: 0 | BD31: 100.00%
A32: 2017-03-30 | B32: Thursday | C32: 2 | E32: 47 | F32: 13 | G32: 2 | I32: 23 | L32: 8 | M32: 87 | N32: $54.50 | P32: $20.55 | R32: $35.55 | V32: $56.10 | W32: $1.60 | X32: Overage | Z32: 120 | AA32: 0 | AB32: 100.00% | AC32: 2017-03-30 | AD32: Thursday | AI32: 0 | AJ32: $0.00 | AR32: $0.00 | AV32: $0.00 | AW32: $0.00 | AX32: $0.00 | AY32: $0.00 | BB32: 0 | BC32: 0 | BD32: 100.00%
A33: 2017-03-31 | B33: Friday | C33: 7 | E33: 39 | F33: 23 | G33: 2 | H33: 3 | I33: 21 | L33: 14 | M33: 95 | N33: $51.50 | P33: $12.75 | R33: $38.00 | V33: $50.75 | W33: ($0.75) | X33: Shortage | Z33: 120 | AA33: 0 | AB33: 100.00% | AC33: 2017-03-31 | AD33: Friday | AI33: 0 | AJ33: $0.00 | AR33: $0.00 | AV33: $0.00 | AW33: $0.00 | AX33: $0.00 | AY33: $0.00 | BB33: 0 | BC33: 0 | BD33: 100.00%
B34: EOM Totals: | C34: =SUM(C3:C33) -> 112 | D34: =SUM(D3:D33) -> 0 | E34: 1139 | F34: 373 | G34: 86 | H34: 118 | I34: 492 | J34: 10 | K34: 0 | L34: 292 | M34: 2330 | N34: $1,368.50 | V34: =SUM(V3:V33) -> $1,394.54 | W34: =V34-N34 -> $26.04 | X34: Overage | Z34: =SUM(Z6:Z28) -> 2760 | AA34: =SUM(AA3:AA33) -> 0 | AB34: 100.00% | AD34: EOM Totals: | AE34: =SUM(AE3:AE33) -> 28 | AF34: 0 | AG34: 0 | AH34: 0 | AI34: 28 | AJ34: $56.00 | AR34: =SUM(AR3:AR33) -> $40.00 | AS34: 5 | AT34: 3 | AU34: 0 | AV34: =SUM(AV3:AV33) -> $16.00 | AW34: $0.00 | AX34: $56.00 | AY34: $0.00 | BB34: =SUM(BB3:BB33) -> 28 | BC34: =SUM(BC3:BC33) -> 0 | BD34: 100.00% | BE34: =BE5+BE12+BE19+BE26+BE30 -> 2104
A35: Manager Signature: | W35: =SUM(W3:W33) -> $26.04 | X35: Overage | AY35: =SUM(AY3:AY33) -> $0.00
A36: Date: | C36: 2016-02-16
AN37: 11232

Sheet May
C1: FIXED ROUTES FIXED ROUTES FIXED ROUTES FIXED ROUTES FIXED ROUTES FIXED ROUTES | AC1: PARATRANSIT ROUTE(S) PARATRANSIT ROUTE(S) PARATRANSIT ROUTE(S) PARATRANSIT ROUTE(S)
A2: Date | B2: Day | C2: Conroe Connection Tickets | D2: Senior Ride Tickets | E2: $1.00 Adults | F2: $.50 Riders | G2: $.50 ADA Riders | H2: Children Under 6 | I2: Transfer Slips | J2: Employee/City Badge/EMS | K2: Service Animals | L2: Ramp Used | M2: Total FR Riders | N2: Expected Monies FR | O2: 1473 Amt. | P2: 1474 Amt. | Q2: 1475 Amt. | R2: 1476 Amt. | S2: 1603 Amt. | T2: 1604 Amt. | U2: Spare Amt. | V2: Total Collected FR | W2: Difference | X2: Overage / Shortage | Y2: Justification | Z2: Total FR Trips | AA2: Late FR Trips | AB2: OTP | AC2: Date | AD2: Day | AE2: $2.00 Paratransit Clients | AF2: $2.00 Companions | AG2: Personal Care Attendants | AH2: Service Animals | AI2: Total Para Riders | AJ2: Expected Monies Para | AK2: 1473 Amt. | AL2: 1474 Amt. | AM2: 1475 Amt. | AN2: 1476 Amt. | AO2: 1603 Amt. | AP2: 1604 Amt. | AQ2: Spare Amt. | AR2: Currency Collected | AS2: ADA Green Tickets | AT2: ADA White Tickets | AU2: Senior Rides Tickets | AV2: Conroe Connection Ticket "Fare" | AW2: Senior Rides Ticket "Fare" | AX2: Total Fare Collected | AY2: Difference | AZ2: Overage / Shortage | BA2: Justification | BB2: Total Para Trips | BC2: Late Para Trips | BD2: OTP | BE2: Total Weekly Riders
A3: 2017-05-01 | B3: Monday | C3: 6 | E3: 58 | F3: 21 | G3: 4 | H3: 6 | I3: 11 | L3: 8 | M3: =C3+D3+E3+F3+G3+H3+I3+J3 -> 106 | N3: =E3*1+F3*0.5+G3*0.5 -> $70.50 | P3: $19.76 | R3: $47.43 | V3: =SUM(O3:U3) -> $67.19 | W3: =V3-N3 -> ($3.31) | X3: =IF(W3>0, "Overage", IF(W3<0, "Shortage", "")) -> Shortage | Z3: =2*12*5 -> 120 | AA3: 0 | AB3: =IF(Z3=0, 1, (Z3-AA3)/Z3) -> 100.00% | AC3: =A3 -> 2017-05-01 | AD3: =B3 -> Monday | AE3: 19 | AI3: =AE3+AF3+AG3 -> 19 | AJ3: =AE3*2+AF3*2 -> $38.00 | AO3: $6.00 | AP3: $20.00 | AR3: =SUM(AK3:AQ3) -> $26.00 | AS3: 4 | AT3: 2 | AV3: =(AS3+AT3)*2 -> $12.00 | AW3: =AU3*2 -> $0.00 | AX3: =AR3+AV3+AW3 -> $38.00 | AY3: =AX3-AJ3 -> $0.00 | AZ3: =IF(AY3>0, "Overage", IF(AY3<0, "Shortage", "")) ->  | BB3: =AE3 -> 19 | BC3: 0 | BD3: =IF(BB3=0, 1, (BB3-BC3)/BB3) -> 100.00% | BE3: =M3+AI3 -> 125
A4: 2017-05-02 | B4: Tuesday | C4: 4 | E4: 45 | F4: 12 | G4: 4 | H4: 6 | I4: 13 | L4: 6 | M4: 84 | N4: $53.00 | P4: $34.50 | R4: $17.51 | V4: $52.01 | W4: ($0.99) | X4: =IF(W4>0, "Overage", IF(W4<0, "Shortage", "")) -> Shortage | Z4: 120 | AA4: 0 | AB4: 100.00% | AC4: 2017-05-02 | AD4: Tuesday | AE4: 16 | AI4: 16 | AJ4: $32.00 | AO4: $2.00 | AP4: $22.00 | AR4: $24.00 | AT4: 4 | AV4: $8.00 | AW4: $0.00 | AX4: $32.00 | AY4: $0.00 | BB4: 16 | BC4: 0 | BD4: 100.00% | BE4: =BE3+M4+AI4 -> 225
A5: 2017-05-03 | B5: Wednesday | C5: 6 | E5: 38 | F5: 4 | G5: 2 | H5: 7 | I5: 8 | L5: 7 | M5: 65 | N5: $41.00 | P5: $18.85 | R5: $28.25 | V5: $47.10 | W5: $6.10 | X5: Overage | Z5: 120 | AA5: 0 | AB5: 100.00% | AC5: 2017-05-03 | AD5: Wednesday | AE5: 18 | AI5: 18 | AJ5: $36.00 | AO5: $4.00 | AP5: $20.00 | AR5: $24.00 | AS5: 2 | AT5: 4 | AV5: $12.00 | AX5: $36.00 | AY5: $0.00 | BB5: 18 | BC5: 0 | BD5: 100.00% | BE5: 308
A6: 2017-05-04 | B6: Thursday | C6: 2 | E6: 60 | F6: 21 | G6: 4 | H6: 8 | I6: 21 | L6: 8 | M6: 116 | N6: $72.50 | P6: $55.55 | R6: $17.50 | V6: $73.05 | W6: $0.55 | X6: Overage | Z6: 120 | AA6: 0 | AB6: 100.00% | AC6: 2017-05-04 | AD6: Thursday | AE6: 12 | AI6: 12 | AJ6: $24.00 | AO6: $2.00 | AP6: $14.00 | AR6: $16.00 | AS6: 2 | AT6: 2 | AV6: $8.00 | AW6: =AU6*2 -> $0.00 | AX6: $24.00 | AY6: $0.00 | BB6: 12 | BC6: 0 | BD6: 100.00% | BE6: =BE5+M6+AI6 -> 436
A7: 2017-05-05 | B7: Friday | C7: 6 | E7: 49 | F7: 18 | H7: 7 | I7: 7 | L7: 8 | M7: =C7+D7+E7+F7+G7+H7+I7+J7 -> 87 | N7: =E7*1+F7*0.5+G7*0.5 -> $58.00 | P7: $21.55 | R7: $40.00 | V7: =SUM(O7:U7) -> $61.55 | W7: =V7-N7 -> $3.55 | X7: =IF(W7>0, "Overage", IF(W7<0, "Shortage", "")) -> Overage | Z7: 120 | AA7: 0 | AB7: 100.00% | AC7: 2017-05-05 | AD7: Friday | AE7: 14 | AI7: =AE7+AF7+AG7 -> 14 | AJ7: =AE7*2+AF7*2 -> $28.00 | AO7: $2.00 | AP7: $12.00 | AR7: =SUM(AK7:AQ7) -> $14.00 | AS7: 4 | AT7: 3 | AV7: =(AS7+AT7)*2 -> $14.00 | AX7: =AR7+AV7+AW7 -> $28.00 | AY7: $0.00 | BB7: 14 | BC7: 0 | BD7: 100.00% | BE7: =BE6+M7+AI7 -> 537
A8: 2017-05-08 | B8: Monday | C8: 6 | E8: 55 | F8: 12 | G8: 2 | H8: 1 | I8: 40 | M8: =C8+D8+E8+F8+G8+H8+I8+J8 -> 116 | N8: =E8*1+F8*0.5+G8*0.5 -> $62.00 | P8: $49.76 | R8: $18.77 | V8: =SUM(O8:U8) -> $68.53 | W8: =V8-N8 -> $6.53 | Z8: 120 | AA8: 0 | AB8: =IF(Z8=0, 1, (Z8-AA8)/Z8) -> 100.00% | AC8: 2017-05-08 | AD8: Monday | AE8: 11 | AI8: =AE8+AF8+AG8 -> 11 | AJ8: =AE8*2+AF8*2 -> $22.00 | AO8: $7.00 | AP8: $7.00 | AR8: =SUM(AK8:AQ8) -> $14.00 | AS8: 2 | AT8: 2 | AV8: =(AS8+AT8)*2 -> $8.00 | AX8: =AR8+AV8+AW8 -> $22.00 | AY8: $0.00 | BB8: 11 | BC8: 0 | BD8: =IF(BB8=0, 1, (BB8-BC8)/BB8) -> 100.00% | BE8: =M8+AI8 -> 127
A9: 2017-05-09 | B9: Tuesday | C9: 3 | E9: 69 | F9: 9 | G9: 7 | H9: 2 | I9: 18 | L9: 12 | M9: 108 | N9: $77.00 | P9: $29.50 | R9: $47.20 | V9: =SUM(O9:U9) -> $76.70 | W9: ($0.30) | X9: =IF(W9>0, "Overage", IF(W9<0, "Shortage", "")) -> Shortage | Z9: 120 | AA9: 0 | AB9: 100.00% | AC9: =A9 -> 2017-05-09 | AD9: =B9 -> Tuesday | AE9: 14 | AI9: 14 | AJ9: $28.00 | AO9: $2.00 | AP9: $16.00 | AR9: =SUM(AK9:AQ9) -> $18.00 | AS9: 2 | AT9: 3 | AV9: $10.00 | AW9: =AU9*2 -> $0.00 | AX9: $28.00 | AY9: =AX9-AJ9 -> $0.00 | BB9: =AE9 -> 14 | BC9: 0 | BD9: 100.00% | BE9: =BE8+M9+AI9 -> 249
A10: 2017-05-10 | B10: Wednesday | C10: 7 | E10: 51 | F10: 14 | G10: 2 | H10: 8 | I10: 20 | L10: 23 | M10: 102 | N10: $59.00 | P10: $42.55 | R10: $16.50 | V10: $59.05 | W10: $0.05 | X10: Overage | Z10: 120 | AA10: 0 | AB10: 100.00% | AC10: 2017-05-10 | AD10: Wednesday | AE10: 22 | AI10: 22 | AJ10: $44.00 | AO10: $10.00 | AP10: $16.00 | AR10: $26.00 | AS10: 5 | AT10: 4 | AV10: $18.00 | AW10: $0.00 | AX10: $44.00 | AY10: $0.00 | BB10: 22 | BC10: 0 | BD10: 100.00% | BE10: 373
A11: 2017-05-11 | B11: Thursday | C11: 9 | E11: 57 | F11: 8 | G11: 4 | H11: 8 | I11: 6 | L11: 9 | M11: 92 | N11: $63.00 | P11: $18.50 | R11: $47.00 | V11: $65.50 | W11: $2.50 | X11: Overage | Z11: 120 | AA11: 0 | AB11: 100.00% | AC11: 2017-05-11 | AD11: Thursday | AE11: 9 | AI11: 9 | AJ11: $18.00 | AO11: $4.00 | AP11: $12.00 | AR11: $16.00 | AT11: 1 | AV11: $2.00 | AW11: $0.00 | AX11: $18.00 | AY11: $0.00 | BB11: 9 | BC11: 0 | BD11: 100.00% | BE11: =BE10+M11+AI11 -> 474
A12: 2017-05-12 | B12: Friday | C12: 4 | E12: 57 | F12: 8 | G12: 2 | H12: 6 | I12: 19 | L12: 19 | M12: 96 | N12: $62.00 | P12: $41.57 | R12: $18.90 | V12: $60.47 | W12: ($1.53) | X12: =IF(W12>0, "Overage", IF(W12<0, "Shortage", "")) -> Shortage | Z12: 120 | AA12: 0 | AB12: 100.00% | AC12: 2017-05-12 | AD12: Friday | AE12: 19 | AI12: 19 | AJ12: $38.00 | AO12: $6.00 | AP12: $16.00 | AR12: $22.00 | AS12: 4 | AT12: 4 | AV12: $16.00 | AW12: $0.00 | AX12: $38.00 | AY12: $0.00 | BB12: 19 | BC12: 0 | BD12: 100.00% | BE12: =BE11+M12+AI12 -> 589
A13: 2017-05-15 | B13: Monday | C13: 6 | E13: 40 | F13: 9 | G13: 2 | H13: 6 | I13: 11 | M13: 74 | N13: $45.50 | O13: $25.05 | P13: $20.95 | V13: $46.00 | W13: $0.50 | X13: =IF(W13>0, "Overage", IF(W13<0, "Shortage", "")) -> Overage | Z13: 120 | AA13: 0 | AB13: 100.00% | AC13: 2017-05-15 | AD13: Monday | AE13: 15 | AI13: 15 | AJ13: $30.00 | AO13: $8.00 | AP13: $14.00 | AR13: $22.00 | AS13: 2 | AT13: 2 | AV13: $8.00 | AW13: $0.00 | AX13: $30.00 | AY13: $0.00 | BB13: 15 | BC13: 0 | BD13: 100.00% | BE13: =M13+AI13 -> 89
A14: 2017-05-16 | B14: Tuesday | C14: 6 | E14: 52 | F14: 18 | G14: 6 | H14: 9 | I14: 25 | L14: 22 | M14: 116 | N14: $64.00 | O14: $19.75 | P14: $42.40 | V14: $62.15 | W14: ($1.85) | X14: Shortage | Z14: 120 | AA14: 0 | AB14: 100.00% | AC14: 2017-05-16 | AD14: Tuesday | AE14: 12 | AI14: 12 | AJ14: $24.00 | AO14: $2.00 | AP14: $10.00 | AR14: $12.00 | AS14: 2 | AT14: 4 | AV14: $12.00 | AX14: $24.00 | AY14: $0.00 | BB14: 12 | BC14: 0 | BD14: 100.00% | BE14: =BE13+M14+AI14 -> 217
A15: 2017-05-17 | B15: Wednesday | C15: 6 | E15: 35 | F15: 9 | H15: 5 | I15: 11 | L15: 4 | M15: 66 | N15: $39.50 | O15: $29.46 | P15: $11.50 | V15: $40.96 | W15: $1.46 | X15: Overage | Z15: 120 | AA15: 0 | AB15: 100.00% | AC15: 2017-05-17 | AD15: Wednesday | AE15: 17 | AI15: 17 | AJ15: $34.00 | AO15: $8.00 | AP15: $22.00 | AR15: $30.00 | AT15: 2 | AV15: $4.00 | AX15: $34.00 | AY15: $0.00 | BB15: 17 | BC15: 0 | BD15: 100.00% | BE15: 300
A16: 2017-05-18 | B16: Thursday | M16: 0 | N16: $0.00 | V16: =SUM(O16:U16) -> $0.00 | W16: =V16-N16 -> $0.00 | X16: =IF(W16>0, "Overage", IF(W16<0, "Shortage", "")) ->  | Z16: 120 | AA16: 0 | AB16: =IF(Z16=0, 1, (Z16-AA16)/Z16) -> 100.00% | AC16: =A16 -> 2017-05-18 | AD16: Thursday | AI16: 0 | AJ16: $0.00 | AR16: $0.00 | AV16: $0.00 | AW16: =AU16*2 -> $0.00 | AX16: =AR16+AV16+AW16 -> $0.00 | AY16: $0.00 | BB16: =AE16 -> 0 | BC16: 0 | BD16: =IF(BB16=0, 1, (BB16-BC16)/BB16) -> 100.00% | BE16: =BE15+M16+AI16 -> 300
A17: 2017-05-19 | B17: Friday | M17: 0 | N17: $0.00 | V17: $0.00 | W17: $0.00 | Z17: 120 | AA17: 0 | AB17: 100.00% | AC17: 2017-05-19 | AD17: Friday | AI17: 0 | AJ17: $0.00 | AR17: $0.00 | AV17: $0.00 | AW17: $0.00 | AX17: $0.00 | AY17: $0.00 | BB17: 0 | BC17: 0 | BD17: 100.00% | BE17: =BE16+M17+AI17 -> 300
A18: 2017-05-18 | B18: Thursday | C18: 14 | E18: 48 | F18: 16 | G18: 2 | H18: 3 | I18: 9 | L18: 6 | M18: 92 | N18: $57.00 | P18: $41.16 | Q18: $17.12 | V18: $58.28 | W18: $1.28 | X18: Overage | Z18: 120 | AA18: 0 | AB18: 100.00% | AC18: 2017-05-18 | AD18: =B18 -> Thursday | AE18: 10 | AI18: 10 | AJ18: $20.00 | AP18: $10.00 | AR18: $10.00 | AS18: 3 | AT18: 2 | AV18: $10.00 | AW18: $0.00 | AX18: $20.00 | AY18: $0.00 | BB18: 10 | BC18: 0 | BD18: 100.00% | BE18: =BE17+M18+AI18 -> 402
A19: 2017-05-19 | B19: Friday | C19: 8 | E19: 38 | F19: 10 | H19: 5 | I19: 15 | L19: 8 | M19: 76 | N19: $43.00 | P19: $15.75 | Q19: $26.00 | V19: $41.75 | W19: ($1.25) | X19: Shortage | Z19: 120 | AA19: 0 | AB19: 100.00% | AC19: 2017-05-19 | AD19: =B19 -> Friday | AE19: 21 | AI19: 21 | AJ19: $42.00 | AO19: $14.00 | AP19: $16.00 | AR19: $30.00 | AS19: 4 | AT19: 2 | AV19: $12.00 | AW19: $0.00 | AX19: $42.00 | AY19: $0.00 | AZ19: =IF(AY19>0, "Overage", IF(AY19<0, "Shortage", "")) ->  | BB19: 21 | BC19: 0 | BD19: 100.00% | BE19: 499
A20: 2017-05-22 | B20: Monday | C20: 2 | E20: 55 | F20: 11 | G20: 1 | I20: 18 | L20: 12 | M20: 87 | N20: $61.00 | P20: $36.50 | Q20: $24.99 | V20: $61.49 | W20: $0.49 | X20: =IF(W20>0, "Overage", IF(W20<0, "Shortage", "")) -> Overage | Z20: 120 | AA20: 0 | AB20: 100.00% | AC20: 2017-05-22 | AD20: Monday | AE20: 16 | AI20: 16 | AJ20: $32.00 | AO20: $6.00 | AP20: $18.00 | AR20: $24.00 | AS20: 2 | AT20: 2 | AV20: $8.00 | AW20: $0.00 | AX20: $32.00 | AY20: $0.00 | AZ20: =IF(AY20>0, "Overage", IF(AY20<0, "Shortage", "")) ->  | BB20: 16 | BC20: 0 | BD20: 100.00% | BE20: =M20+AI20 -> 103
A21: 5/23/20107 | B21: Tuesday | C21: 3 | E21: 50 | F21: 15 | G21: 6 | H21: 3 | I21: 16 | L21: 4 | M21: 93 | N21: $60.50 | P21: $16.23 | Q21: $44.49 | V21: $60.72 | W21: $0.22 | X21: =IF(W21>0, "Overage", IF(W21<0, "Shortage", "")) -> Overage | Z21: 120 | AA21: 0 | AB21: 100.00% | AC21: 5/23/20107 | AD21: Tuesday | AE21: 11 | AI21: 11 | AJ21: $22.00 | AP21: $10.00 | AR21: $10.00 | AS21: 3 | AT21: 3 | AV21: $12.00 | AW21: =AU21*2 -> $0.00 | AX21: $22.00 | AY21: $0.00 | AZ21: =IF(AY21>0, "Overage", IF(AY21<0, "Shortage", "")) ->  | BB21: 11 | BC21: 0 | BD21: 100.00% | BE21: =BE20+M21+AI21 -> 207
A22: 2017-05-24 | B22: Wednesday | C22: 10 | E22: 35 | F22: 12 | G22: 2 | H22: 2 | I22: 15 | L22: 9 | M22: 76 | N22: $42.00 | P22: $24.50 | Q22: $18.35 | V22: $42.85 | W22: $0.85 | X22: Overage | Z22: 120 | AA22: 0 | AB22: 100.00% | AC22: 2017-05-24 | AD22: Wednesday | AE22: 9 | AI22: 9 | AJ22: $18.00 | AO22: $4.00 | AP22: $6.00 | AR22: $10.00 | AT22: 4 | AV22: $8.00 | AW22: $0.00 | AX22: $18.00 | AY22: $0.00 | BB22: 9 | BC22: 0 | BD22: 100.00% | BE22: 292
A23: 2017-05-25 | B23: Thursday | M23: 0 | N23: $0.00 | AC23: 2017-05-25 | AV23: $0.00 | AY23: $0.00 | BE23: 292
A24: 2017-05-26 | B24: Friday | M24: 0 | N24: $0.00 | AC24: 2017-05-26 | AV24: $0.00 | AY24: $0.00 | BE24: 292
A25: 2017-05-25 | B25: Thursday | C25: 1 | E25: 42 | F25: 15 | G25: 2 | H25: 5 | I25: 14 | L25: 29 | M25: 79 | N25: $50.50 | P25: $26.28 | Q25: $25.75 | V25: =SUM(O25:U25) -> $52.03 | W25: =V25-N25 -> $1.53 | X25: =IF(W25>0, "Overage", IF(W25<0, "Shortage", "")) -> Overage | Z25: =2*12*5 -> 120 | AA25: 0 | AB25: =IF(Z25=0, 1, (Z25-AA25)/Z25) -> 100.00% | AC25: 2017-05-25 | AD25: Thursday | AE25: 14 | AI25: =AE25+AF25+AG25 -> 14 | AJ25: =AE25*2+AF25*2 -> $28.00 | AP25: $18.00 | AR25: =SUM(AK25:AQ25) -> $18.00 | AS25: 3 | AT25: 2 | AV25: $10.00 | AX25: =AR25+AV25+AW25 -> $28.00 | AY25: $0.00 | AZ25: =IF(AY25>0, "Overage", IF(AY25<0, "Shortage", "")) ->  | BB25: =AE25 -> 14 | BC25: 0 | BD25: =IF(BB25=0, 1, (BB25-BC25)/BB25) -> 100.00% | BE25: 385
A26: 526/2017 | B26: Friday | C26: 12 | E26: 34 | F26: 11 | H26: 10 | I26: 13 | L26: 8 | M26: 80 | N26: $39.50 | P26: $27.33 | Q26: $12.47 | V26: =SUM(O26:U26) -> $39.80 | W26: =V26-N26 -> $0.30 | X26: =IF(W26>0, "Overage", IF(W26<0, "Shortage", "")) -> Overage | Z26: 120 | AA26: 0 | AB26: 100.00% | AC26: 526/2017 | AD26: Friday | AE26: 13 | AI26: 13 | AJ26: $26.00 | AO26: $2.00 | AP26: $8.00 | AR26: $10.00 | AS26: 4 | AT26: 4 | AV26: $16.00 | AX26: $26.00 | AY26: $0.00 | BB26: 13 | BC26: 0 | BD26: 100.00% | BE26: 478
A27: 2017-05-29 | B27: Monday | C27: 1 | E27: 21 | F27: 4 | I27: 6 | M27: 32 | N27: $23.00 | P27: $2.00 | Q27: $20.70 | V27: =SUM(O27:U27) -> $22.70 | W27: =V27-N27 -> ($0.30) | X27: =IF(W27>0, "Overage", IF(W27<0, "Shortage", "")) -> Shortage | Z27: 120 | AA27: 0 | AB27: 100.00% | AC27: 2017-05-29 | AD27: Monday | AE27: 7 | AI27: =AE27+AF27+AG27 -> 7 | AJ27: =AE27*2+AF27*2 -> $14.00 | AO27: $4.00 | AP27: $6.00 | AR27: $10.00 | AT27: 2 | AV27: $4.00 | AX27: $14.00 | AY27: $0.00 | BB27: 7 | BD27: 100.00% | BE27: =M27+AI27 -> 39
A28: 2017-05-30 | B28: Tuesday | C28: 1 | E28: 56 | F28: 15 | H28: 5 | I28: 20 | L28: 7 | M28: =C28+D28+E28+F28+G28+H28+I28+J28 -> 97 | N28: =E28*1+F28*0.5+G28*0.5 -> $63.50 | O28: $30.00 | Q28: $33.50 | V28: =SUM(O28:U28) -> $63.50 | W28: =V28-N28 -> $0.00 | X28: =IF(W28>0, "Overage", IF(W28<0, "Shortage", "")) ->  | Z28: 120 | AA28: 0 | AB28: 100.00% | AC28: 2017-05-30 | AD28: Tuesday | AE28: 10 | AI28: 10 | AJ28: $20.00 | AO28: $2.00 | AP28: $10.00 | AR28: $12.00 | AT28: 4 | AV28: $8.00 | AX28: $20.00 | AY28: $0.00 | BB28: 10 | BD28: 100.00% | BE28: 146
A29: 2017-05-31 | B29: Wednesday | C29: 11 | E29: 48 | F29: 14 | H29: 3 | I29: 15 | L29: 4 | M29: =C29+D29+E29+F29+G29+H29+I29+J29 -> 91 | N29: $55.00 | O29: $17.50 | Q29: $38.00 | V29: =SUM(O29:U29) -> $55.50 | W29: =V29-N29 -> $0.50 | X29: =IF(W29>0, "Overage", IF(W29<0, "Shortage", "")) -> Overage | Z29: 120 | AA29: 0 | AB29: 100.00% | AC29: 2017-05-31 | AD29: Wednesday | AE29: 21 | AI29: 21 | AJ29: $42.00 | AO29: $8.00 | AP29: $22.00 | AR29: $30.00 | AS29: 1 | AT29: 5 | AV29: $12.00 | AX29: =AR29+AV29+AW29 -> $42.00 | AY29: =AX29-AJ29 -> $0.00 | AZ29: =IF(AY29>0, "Overage", IF(AY29<0, "Shortage", "")) ->  | BB29: 21 | BD29: 100.00% | BE29: 258
M30: 0 | N30: $0.00
M31: 0 | N31: $0.00
M32: 0 | N32: $0.00 | BB32: 299
C33: =SUM(C3:C29) -> 134 | D33: 0 | E33: 1093 | F33: 286 | G33: 52 | H33: 115 | I33: 351 | J33: 0 | K33: 0 | L33: 213 | M33: 2031 | N33: $1,262.00 | V33: =SUM(V3:V29) -> $1,278.88 | W33: =V33-N33 -> $16.88 | X33: =IF(W33>0, "Overage", IF(W33<0, "Shortage", "")) -> Overage | Z33: 2760 | AA33: =SUM(AA3:AA29) -> 0 | AB33: =IF(Z33=0, 1, (Z33-AA33)/Z33) -> 100.00% | AD33: EOM Totals: | AE33: =SUM(AE3:AE32) -> 330 | AF33: =SUM(AF3:AF29) -> 0 | AG33: =SUM(AG3:AG29) -> 0 | AH33: =SUM(AH3:AH29) -> 0 | AI33: =SUM(AI3:AI32) -> 330 | AJ33: =SUM(AJ3:AJ29) -> $660.00 | AR33: =SUM(AR3:AR29) -> $428.00 | AS33: 49 | AT33: 67 | AU33: 0 | AV33: $232.00 | AW33: $0.00 | AX33: $660.00 | AY33: =AX33-AJ33 -> $0.00 | AZ33: =IF(AY33>0, "Overage", IF(AY33<0, "Shortage", "")) ->  | BB33: =SUM(BB28:BB32) -> 330 | BC33: =SUM(BC3:BC29) -> 0 | BD33: =IF(BB33=0, 1, (BB33-BC33)/BB33) -> 100.00% | BE33: =BE7+BE12+BE19+BE26+BE29 -> 2361
A34: Manager Signature: | W34: =SUM(W3:W29) -> $16.88 | X34: Overage | AY34: =SUM(AY3:AY29) -> $0.00
A35: Date: | C35: 2017-06-08
